Cogmind - Beta 13 *** ADVENTURER MODE // 2024.04.09 @ 22:52:34 Player: Nahyn Result: Destroyed by V6-71L(B) with Heavy Battle Rifle Performance ------------- Evolutions (1) 500 Regions Visited (5) 1000 Robots Destroyed (19) 95 Value Destroyed (433) 433 Prototype IDs (0) 0 Alien Tech Used (0) 0 Bonus (141) 141 TOTAL SCORE: 2169 Bonus ------- Follower Combat Kills 141 Cogmind --------- Core Integrity 0/400 Matter 206/300 Energy 100/100 System Corruption 6% Temperature Cool (0) Movement Core (50) Location -7/Zion Parts ------- > --- POWER (2) -------- (None) > --- PROPULSION (2) --- (None) > --- UTILITY (3) ------ Advanced Targeting Computer > --- WEAPON (2) ------- (None) > --- INVENTORY (5) ---- Improved Heat Sink High-capacity Matter Pod (200) Structural Scanner Bomb Factory No. 2 Peak State ------------ > --- POWER ------------ Ion Engine > --- PROPULSION ------- Light Treads Light Treads > --- UTILITY ---------- Medium Storage Unit Advanced Targeting Computer Advanced Targeting Computer > --- WEAPON ----------- Heavy Battle Rifle Flak Cannon > --- INVENTORY -------- Improved Heat Sink High-capacity Matter Pod Structural Scanner ECM Suite Core Shielding Bomb Factory No. 2 Backup Laser I Mining Laser [Rating: 19] Favorites ----------- Power Ion Engine Engine Ion Engine Propulsion Light Treads Treads Light Treads Utility Advanced Targeting Computer Device ECM Suite Storage Small Storage Unit Processor Advanced Targeting Computer Protection Core Shielding Weapon Grenade Launcher Energy Gun Backup Laser I Ballistic Gun Assault Rifle Ballistic Cannon Flak Cannon Launcher Grenade Launcher Special Weapon Mining Laser Slashing Weapon Makeshift Sword Build | -11 -10 -10 -9 -9 -7 ------- Run | Yrd Mat Min Mat Min Zio Slots Evolved 2 | . . . 2 . . Power 1 | . . . 1 . . Propulsion . | . . . . . . Utility 1 | . . . 1 . . Weapon . | . . . . . . Parts Attached 26 | 6 4 . 8 4 4 Power 2 | 1 . . 1 . . Engine 2 | 1 . . 1 . . Core . | . . . . . . Reactor . | . . . . . . Propulsion 2 | 2 . . . . . Treads 2 | 2 . . . . . Leg . | . . . . . . Wheel . | . . . . . . Hover . | . . . . . . Flight . | . . . . . . Utility 8 | 1 3 . 4 . . Device 3 | . 2 . 1 . . Storage 2 | 1 . . 1 . . Processor 2 | . . . 2 . . Hackware . | . . . . . . Protection 1 | . 1 . . . . Artifact . | . . . . . . Weapon 14 | 2 1 . 3 4 4 Energy Gun 1 | . . . . . 1 Energy Cannon . | . . . . . . Ballistic Gun 4 | 2 . . 2 . . Ballistic Cannon 3 | . . . 1 1 1 Launcher 3 | . 1 . . 2 . Special Weapon 2 | . . . . 1 1 Impact Weapon . | . . . . . . Slashing Weapon 1 | . . . . . 1 Piercing Weapon . | . . . . . . Special Melee Weapon . | . . . . . . Unidentified Prototypes . | . . . . . . Parts Lost 12 | . . . . . 12 Power 2 | . . . . . 2 Propulsion 2 | . . . . . 2 Utility 2 | . . . . . 2 Weapon 6 | . . . . . 6 Highest Loss Streak 8 | . . . . . 8 To Critical Strikes . | . . . . . . Average Slot Usage (%) 98 | . 99 100 100 100 92 Engine 17 | . 14 14 22 22 18 Treads 24 | . 28 28 22 22 19 Device 5 | . 7 14 1 . . Storage 12 | . 14 14 11 11 11 Processor 10 | . . . 21 22 21 Protection 1 | . 6 . . . . Energy Gun 1 | . . . 8 . . Ballistic Gun 13 | . 17 14 11 11 10 Launcher 9 | . 10 14 2 8 8 Naked Turns . | . . . . . . Heaviest Build 30 | 13 17 17 25 30 27 Greatest Support 40 | 40 40 40 40 40 40 Greatest Overweight (x) 4 | . . . . . 4 Average Overweight (x) . | . . . . . . Largest Inventory Capacity 10 | 8 8 8 10 10 10 Average Capacity 8 | 6 8 8 8 10 10 Most Carried 10 | 5 5 8 8 10 10 Average Carried 7 | 1 3 7 7 9 9 Final Capacity 10 | 8 8 8 10 10 5 Final Carried 10 | 1 5 8 7 10 5 Class Distribution -------------------- 100% | Mutant Dominant Class ---------------- Mutant | -10/Materials Mutant | -10/Mines Mutant | -9/Materials Mutant | -9/Mines Mutant | -7/Zion Resources | -11 -10 -10 -9 -9 -7 ----------- Run | Yrd Mat Min Mat Min Zio Matter Collected 649 | 190 154 83 89 105 28 Remotely . | . . . . . . Salvage Created 401 | . 178 . 12 89 122 Parts 37 | . 12 . 2 5 18 Haulers Intercepted . | . . . . . . Recyclers Shooed . | . . . . . . Parts Field Recycled . | . . . . . . Retrieved Matter . | . . . . . . Parts Self-Destructed 1 | . . . . . 1 Prevented . | . . . . . . Kills | -11 -10 -10 -9 -9 -7 ------- Run | Yrd Mat Min Mat Min Zio Combat Hostiles Destroyed 8 | . 5 . . 3 . Guns 3 | . 3 . . . . Cannons 2 | . . . . 2 . AOE 3 | . 2 . . 1 . Classes Destroyed 4 | . 1 . 1 1 1 Watcher 1 | . . . 1 . . Grunt 6 | . 5 . . 1 . Sentry 2 | . . . . 2 . Zionite 10 | . . . . . 10 Best Kill Streak 7 | . 3 . 1 2 7 Combat Bots Only 3 | . 3 . . 2 . Max Kills in Single Turn 3 | . 2 . 1 1 3 Gunslinging . | . . . . . . Exploded 2 | . 2 . . 1 . Melee . | . . . . . . Uniques/NPCs Destroyed . | . . . . . . Combat | -11 -10 -10 -9 -9 -7 -------- Run | Yrd Mat Min Mat Min Zio Hostile Shots Fired 176 | . 20 . . 19 137 Missed 59 | . 4 . . 2 53 Damage Taken 1632 | . 148 . . 187 1297 Core 429 | . 15 . . 14 400 Absorbed by Shields . | . . . . . . Redirected to Shielding 2 | . 2 . . . . Ignored by Resistances 456 | . 48 . . 55 353 Regen/Repaired (Parts) 69 | . . . 69 . . Core Remaining (%) 97 | 100 . 94 . . . Volleys Fired 55 | . 16 1 3 7 28 Largest 2 | . 2 1 2 2 2 Hottest 133 | . 40 20 63 77 133 Shots Fired 81 | . 24 1 6 12 38 Gun 60 | . 20 1 6 5 28 Cannon 14 | . . . . 5 9 Launcher 6 | . 4 . . 2 . Special 1 | . . . . . 1 Kinetic 70 | . 20 1 3 10 36 Thermal 5 | . . . 3 . 2 Explosive 6 | . 4 . . 2 . Electromagnetic . | . . . . . . Robot Hit Streak 17 | . 12 . 13 17 17 Robot Miss Streak 3 | . 2 . 1 1 3 Penetration Max . | . . . . . . Secondary Targets . | . . . . . . Shots Hit Robots 64 | . 17 . 5 9 33 Core Hits 41 | . 13 1 3 9 15 Critical Kills . | . . . . . . Critical Parts Destroyed . | . . . . . . Critical Strikes . | . . . . . . Melee Attacks 3 | . . . . . 3 Impact . | . . . . . . Slashing 3 | . . . . . 3 Piercing . | . . . . . . Sneak Attacks . | . . . . . . Combat Hostiles . | . . . . . . Follow-up Attacks . | . . . . . . Damage Inflicted 1362 | . 287 13 65 299 698 Guns 798 | . 171 13 65 88 461 Cannons 306 | . . . . 165 141 Explosions 162 | . 116 . . 46 . Melee 72 | . . . . . 72 Ramming . | . . . . . . Kinetic 1067 | . 171 13 38 253 592 Thermal 61 | . . . 27 . 34 Explosive 162 | . 116 . . 46 . Electromagnetic . | . . . . . . Impact . | . . . . . . Slashing 72 | . . . . . 72 Piercing . | . . . . . . Highest Corruption 6 | . . . . . 6 Average Corruption 4 | . . . . . 4 Corruption Purged . | . . . . . . Corruption Blocked . | . . . . . . Overload Shots . | . . . . . . Overflow Damage . | . . . . . . Projectiles . | . . . . . . Explosions . | . . . . . . Melee . | . . . . . . Knockbacks 9 | . . . . . 9 Impact . | . . . . . . Kinetic 7 | . . . . . 7 Secondary 2 | . . . . . 2 Self-Inflicted Damage . | . . . . . . Shots . | . . . . . . Rammed . | . . . . . . Targets Rammed . | . . . . . . Kicked . | . . . . . . Crushed . | . . . . . . Highest Temperature 107 | . 15 . 18 107 48 Average Temperature 26 | . 6 . 8 50 17 Received Heat Transfer 258 | . 108 . . 96 54 Siege Activations . | . . . . . . Robots Corrupted . | . . . . . . Combat Hostiles . | . . . . . . Parts Fried . | . . . . . . Impact Corruptions . | . . . . . . Robots Melted . | . . . . . . Combat Hostiles . | . . . . . . Parts Melted . | . . . . . . Heat Transferred 198 | . . . 111 . 87 Parts Sabotaged . | . . . . . . Parts Stolen . | . . . . . . Parts Stripped . | . . . . . . Power Chain Reactions . | . . . . . . Alert | -11 -10 -10 -9 -9 -7 ------- Run | Yrd Mat Min Mat Min Zio Peak Influence 226 | . 148 8 120 226 . Initial 8 | . . 8 . . . Average 49 | . 54 3 44 157 . Maximum Alert Level 1 | . . . . 1 . Low Security (%) 90 | 100 100 100 100 40 . Level 1 9 | . . . . 59 . Level 2 . | . . . . . . Level 3 . | . . . . . . Level 4 . | . . . . . . Level 5 . | . . . . . . High Security . | . . . . . . Max Security . | . . . . . . Squads Dispatched 3 | . 2 . 1 . . Investigation 2 | . 2 . . . . Extermination . | . . . . . . Reinforcement 1 | . . . 1 . . Assault . | . . . . . . Garrison . | . . . . . . Intercept . | . . . . . . Searches Triggered . | . . . . . . Construction Impeded . | . . . . . . Haulers Reinforced . | . . . . . . Active Scanning Responses . | . . . . . . Cargo Convoy Interrupts . | . . . . . . Stealth | -11 -10 -10 -9 -9 -7 --------- Run | Yrd Mat Min Mat Min Zio Distress Signals 1 | . . . 1 . . Communications Jammed . | . . . . . . Distress Signals . | . . . . . . Times Spotted 43 | . 8 . 5 8 22 Peak Tracking Total 10 | . 3 . 1 6 10 Tactical Retreats 4 | . . . . 2 2 Traps | -11 -10 -10 -9 -9 -7 ------- Run | Yrd Mat Min Mat Min Zio Traps Triggered 2 | . 2 . . . . Indirectly . | . . . . . . Trap Hack Attempts . | . . . . . . Triggered . | . . . . . . Disarmed . | . . . . . . Reprogrammed . | . . . . . . Reused 2 | . . . . . 2 Traps Extracted . | . . . . . . Installed 2 | . . . . . 2 Triggered . | . . . . . . Most Traps Carried 2 | . . . . 2 2 Machines | -11 -10 -10 -9 -9 -7 ---------- Run | Yrd Mat Min Mat Min Zio Machines Disabled 1 | . . . 1 . . Max in Single Turn . | . . . . . . Machines Repaired . | . . . . . . Machines Dismantled . | . . . . . . Machines Sabotaged . | . . . . . . Overloaded Fab Kills . | . . . . . . Hacking | -11 -10 -10 -9 -9 -7 --------- Run | Yrd Mat Min Mat Min Zio Machines Accessed 8 | . 4 . 4 . . Terminals 5 | . 4 . 1 . . Fabricators . | . . . . . . Repair Stations 2 | . . . 2 . . Recycling Units . | . . . . . . Scanalyzers 1 | . . . 1 . . Garrison Access . | . . . . . . Total Hacks 17 | . 5 . 12 . . Successful 15 | . 5 . 10 . . Failed 2 | . . . 2 . . Catastrophic . | . . . . . . Database Lockouts . | . . . . . . Manual . | . . . . . . Terminals 7 | . 5 . 2 . . Fabricators . | . . . . . . Repair Stations 6 | . . . 6 . . Recycling Units . | . . . . . . Scanalyzers 4 | . . . 4 . . Garrison Access . | . . . . . . Terminal Hacks 6 | . 5 . 1 . . Robot Analysis 1 | . 1 . . . . Branch Access Points 1 | . . . 1 . . Alert Level 2 | . 2 . . . . Locate Traps 1 | . 1 . . . . Maintenance Status 1 | . 1 . . . . Fabricator Hacks . | . . . . . . Repair Station Hacks 5 | . . . 5 . . Scan Component 2 | . . . 2 . . Repair 2 | . . . 2 . . Refit 1 | . . . 1 . . Recycling Unit Hacks . | . . . . . . Scanalyzer 4 | . . . 4 . . Insert Component 2 | . . . 2 . . Analyze 2 | . . . 2 . . Garrison Access Hacks . | . . . . . . Unauthorized Hacks . | . . . . . . Terminals . | . . . . . . Fabricators . | . . . . . . Repair Stations . | . . . . . . Recycling Units . | . . . . . . Scanalyzers . | . . . . . . Garrison Access . | . . . . . . Data Cores Recovered . | . . . . . . Used . | . . . . . . Hacking Detections 5 | . 1 . 4 . . Full Trace Events . | . . . . . . Feedback Events . | . . . . . . Feedback Blocked . | . . . . . . Robot Schematics Acquired 2 | . . . . . 2 Robots Built . | . . . . . . Authchips . | . . . . . . Time . | . . . . . . Total Robot Build Rating . | . . . . . . Part Schematics Acquired 17 | . . . 2 . 15 Parts Built . | . . . . . . Authchips . | . . . . . . Time . | . . . . . . Total Part Build Rating . | . . . . . . Parts Repaired 2 | . . . 2 . . Time 52 | . . . 52 . . Parts Recycled . | . . . . . . Recycled Matter . | . . . . . . Retrieved Matter . | . . . . . . Retrieved Components . | . . . . . . Parts Scanalyzed 2 | . . . 2 . . Part Schematics Acquired 2 | . . . 2 . . Parts Damaged . | . . . . . . Bothacking | -11 -10 -10 -9 -9 -7 ------------ Run | Yrd Mat Min Mat Min Zio Used RIF Installer . | . . . . . . Robots Hacked . | . . . . . . Non-combat . | . . . . . . Combat . | . . . . . . Robot Hacks Applied . | . . . . . . Relay Couplers Released . | . . . . . . Fabnet Peak Effective % . | . . . . . . Robots Rewired . | . . . . . . Allies Hacked . | . . . . . . Hacks Repelled . | . . . . . . Allies | -11 -10 -10 -9 -9 -7 -------- Run | Yrd Mat Min Mat Min Zio Total Allies 4 | . . 3 . 1 . Largest Group 3 | . . 3 3 1 . Highest-Rated Group 40 | . . 40 40 31 . Highest-Rated Ally 31 | . . 16 16 31 . Total Orders . | . . . . . . Ally Attacks 31 | . . . 12 19 . Total Damage 409 | . . . 112 297 . Kills 9 | . . . 5 4 . Allies Corrupted . | . . . . . . Allies Melted . | . . . . . . Intel | -11 -10 -10 -9 -9 -7 ------- Run | Yrd Mat Min Mat Min Zio Robot Analysis Total 1 | . 1 . . . . Derelict Logs Recovered 4 | . . 2 . 1 1 Drone Launches . | . . . . . . Drone Recoveries . | . . . . . . Exploration | -11 -10 -10 -9 -9 -7 ------------- Run | Yrd Mat Min Mat Min Zio Turns Passed 3304 | 80 734 859 445 383 803 Spaces Moved 1832 | 46 373 498 255 219 441 Core 21 | 5 . . . . 16 Treads 1811 | 41 373 498 255 219 425 Legs . | . . . . . . Wheels . | . . . . . . Hover . | . . . . . . Flight . | . . . . . . Fastest Speed 50 | 50 160 160 160 160 160 Average Speed 160 | 148 160 160 160 160 162 Slowest Speed 250 | 160 160 160 160 160 250 Overloaded Moves . | . . . . . . Propulsion Burnouts . | . . . . . . Robots Hopped . | . . . . . . Cave-ins Triggered . | . . . . . . Exploration Rate (%) 51 | 4 47 93 34 62 69 Regions Visited 5 Branch Regions 3 Pre-discovered Areas 2 | . . . . . 2 Known Exits Taken 1 | . . . 1 . . Unknown Exits Taken 4 | 1 1 1 . 1 . Scrap Searched 3 | . . 1 . 1 1 Spaces Dug . | . . . . . . Terrain Destroyed 43 | . 25 . . 18 . Melee . | . . . . . . Projectile . | . . . . . . AOE 43 | . 25 . . 18 . Terrain Rammed . | . . . . . . Walls Destroyed . | . . . . . . Machines Disabled . | . . . . . . Actions | -11 -10 -10 -9 -9 -7 --------- Run | Yrd Mat Min Mat Min Zio Total 2108 | 58 486 559 285 238 482 Wait 166 | . 89 58 15 4 . Move 1827 | 45 372 497 254 218 441 Hop . | . . . . . . Pick Up 24 | 7 5 3 3 4 2 Fast Attach . | . . . . . . Attach 13 | 6 1 . 2 . 4 Detach . | . . . . . . Swap 13 | . 3 . 6 4 . Drop 5 | . . . 2 1 2 Fire 55 | . 16 1 3 7 28 Melee 3 | . . . . . 3 Ram . | . . . . . . Kick . | . . . . . . Crush . | . . . . . . Escape Stasis . | . . . . . . Rewire . | . . . . . . Trap 2 | . . . . . 2 Miscellaneous . | . . . . . . Route ------- -11/Scrapyard -10/Materials (discovered 2 exits: *Mat / [*Min]) -10/Mines -9/Materials (discovered 4 exits: *Mat x2 / *Min x2) -9/Mines (discovered 4 exits: *Mat x2 / Exi / [*Zio]) -7/Zion (discovered 1 exit: [*Pro]) History --------- Turn | Location | Event 4 | -11/Scrapyard | Discovered new exit (range 14) 81 | -11/Scrapyard | Entered Materials 276 | -10/Materials | Discovered new exit (range 4) 317 | -10/Materials | Build established: Mutant 697 | -10/Materials | Discovered new exit (range 16) 815 | -10/Materials | Entered Mines 836 | -10/Mines | Met a Derelict bent on vengeance 892 | -10/Mines | YI-UF0 nonchalantly dropped a Grenade Launcher on the ground 1192 | -10/Mines | Learned location of 1 exit from Materials 1213 | -10/Mines | A weapon hastily lodged in a ceiling crevice suddenly fell to the ground 1251 | -10/Mines | Assisted by bots powering up and referring to "LRC-V3" 1528 | -10/Mines | Learned Materials emergency access door positions 1666 | -10/Mines | Discovered new exit (range 4) 1674 | -10/Mines | Entered Materials 1674 | -9/Materials | Accompanied by 3 allies 1674 | -9/Materials | Evolved 2 slots: Power x1, Utility x1 1675 | -9/Materials | Identified exit to Materials 1801 | -9/Materials | Repaired Grenade Launcher? 1817 | -9/Materials | Discovered exit to Materials (range 15) 2029 | -9/Materials | Discovered new exit (range 12) 2035 | -9/Materials | Identified exit to Mines 2114 | -9/Materials | Repaired Assault Rifle? 2119 | -9/Materials | Entered Mines 2119 | -9/Mines | Accompanied by 1 ally 2193 | -9/Mines | Discovered exit to Materials (range 5) 2196 | -9/Mines | Received a Mining Laser from a helpful Derelict 2217 | -9/Mines | Found a hidden stash of uninstalled traps 2255 | -9/Mines | Excavation squad dispatched 2255 | -9/Mines | A large section of the Mines collapsed 2398 | -9/Mines | Identified exit to Exiles 2489 | -9/Mines | Discovered exit to Materials (range 12) 2490 | -9/Mines | A Derelict revealed a hidden shortcut to a safe place 2502 | -9/Mines | Entered Zion 2598 | -7/Zion | Discovered new exit (range 14) 2957 | -7/Zion | Learned location of Quarantine (-3) 3021 | -7/Zion | Learned Factory trap positions 3071 | -7/Zion | Found Prototype Device 3081 | -7/Zion | Warned about trapping Zion interior 3084 | -7/Zion | Attacked by Zionites 3287 | -7/Zion | Spotted V6-71L(B) 3289 | -7/Zion | Spotted T4-0SX(B) 3297 | -7/Zion | Core integrity fell below 50% 3303 | -7/Zion | Core integrity fell below 20% 3305 | -7/Zion | Destroyed by V6-71L(B) with Heavy Battle Rifle Last Messages --------------- Machinery. A6-K72(z) pulls a Mak. Hammer out of the Twisted Machinery. Mak. Sword destroyed. System corrupted by crushing effect (+2). Knocked back. 2W-BV6(z) bursts out of the Twisted Machinery. 2W-BV6(z) pulls a Mak. Shrapnel Gun out of the Twisted Machinery. WA-109(z) bursts out of the Twisted Machinery. WA-109(z) pulls a Mak. Spear out of the Twisted Machinery. KE-4LQ(z) pulls a Mak. Hammer out of the Twisted Machinery. Adv. Targeting Computer destroyed. System corrupted by crushing effect (+4). Backup Laser I destroyed. MX-QNO(z) destroyed. KE-4LQ(z) destroyed. Med. Storage Unit destroyed. Map ----- +----------------------------------------------------+ | ?"""" " ###?????????????????? | | "#""" "" """ ""#??????????????????? | | """"""""" "" """" """"#??????????????????? | | """""""""" """ """"" """"#??????????????????? | | " "#"""" """###??????????????????? | | """""" "#"#????????????????????? | | """""" "###????????????????????? | | " """" """" ""??????????????????????? | | ????""""" "" ""??????????????????????# | | ?????""#"" "" ""#?????????????????????## | | ???????#"""" " """##????????????????????# | | ???????###"" " """""#"???????????????????# | | ????????#""" "" """"""#"##????????????????# | | ????????#""" """""" """""#????????????????# | | ????????##"" """" """"#????????????????# | | ?????????##" """ "#??????????????????? | | ?????????#"" "" "##?????????????????? | | ?????????#"" ""#?????????????????# | | ?????????##" ""#?#####???????????## | | ?????????#"" ""#?# ############# | | ?????????#"" ""#?# """"""""## | | ?????????##" ""### """"""# | | ?????????#"" """" ""# %% # | | ?????????#"" """"" BB % | | ?????????#" """"" BB % | | ????????#"" """#"@!!BB; ## | | ?????????#" """"#" BB### " """"""## | | ?????????"" """"#"" %zzz"#?# """"""""""""## | | ?????????"" """#"""I!% "#?# "############# | | ?????????" "#"""=z/! ""#?#####???????????## | | ????????? ?##"" % """"#??????????????????? | | ???????? "##""% ""####??????????????????? | | ????????? """""" """#????????????????????# | | ?????????? """"#""" ""##????????????????????# | | ????????? """"#"" ""#""#??????????????????? | | ####?##"" ##"" """"#""??????????????????? | | #""###"#""" ###" """"##??????????????????? | | """"#"""""""$ ###"" "" """#?????????????????? | | """""""#"" ##" " "##??????????????????? | | """" """" #""#" "#???????????????????? | | """" """ """"" "##??????????????????? | | """"""= """#??????????????????? | | ! #" """"##"?????????????????? | | "" """"""#?????????????????? | | """ ""#"#????????????????? | | """" / """#????????????????? | | """" "" ""##????????????????? | | """ """ ""##?????????????????? | | """ "$" """#?????????????????? | | " """"" """" """ ""#?????????????????? | +----------------------------------------------------+ Best States ------------- Heat Dissipation 42 Energy Generation 15 Energy Capacity 400 Matter Stores 300 Matter Capacity 300 Sight Range 16 Terrain Scan Density 10 ECM Strength 1 Resistance: KI 20 Resistance: TH 20 Resistance: EX 20 Resistance: EM 20 Resistance: I 20 Resistance: S 20 Resistance: P 20 Core Shielding 20 Evasion (%) 40 Targeting Accuracy 16 Recoil Reduction 2 Offensive Hacking 10 Item Schematics ----------------- Hcp. Matter Pod | -9/Materials | Scanalyzed ECM Suite | -9/Materials | Scanalyzed Flexi-carbon Leg | -7/Zion | Archive Mak. System Restoration Module | -7/Zion | Archive Imp. Thermal Shield | -7/Zion | Archive Med. Treads | -7/Zion | Archive Hvy. Plasma Cannon | -7/Zion | Archive Mak. Light Armor Plating | -7/Zion | Archive Matter Compressor | -7/Zion | Archive Adv. Assault Cannon | -7/Zion | Archive Nuclear Pulse Thruster | -7/Zion | Archive Arc Projector | -7/Zion | Archive Imp. Remote Datajack | -7/Zion | Archive Lgt. Fission Core | -7/Zion | Archive Flak Gun | -7/Zion | Archive Gravmag System | -7/Zion | Archive Imp. System Restoration Module | -7/Zion | Archive Robot Schematics ------------------ K-01 Serf | -7/Zion | Archive S-27 Virus | -7/Zion | Archive Fabricated ------------ Nothing Alien Tech Used ----------------- None Achievements -------------- Robot Respite Tourist Challenges ------------ None Game ------ Seed UtilityHellfireBuckler Manual? 0 Play Time 00:36:41 Cumulative 2.6 hours Start 2024.04.09 @ 22:14:49 End 2024.04.09 @ 22:52:34 Sessions 1 Manual Loads 0 Difficulty Adventurer Special Mode None Game No. 4 Rogue 0 Adventurer 4 Explorer 0 Win Type - Total 0 Types 0/0/0/0/0/0/0/0/0 Lore% 3 Gallery% 5 Achievement% 7 Wizard Run 0 Options --------- Layout 1 ASCII 0 Keyboard 0 Movement Mouse Keybinds 0 Fullscreen 2 Font 24/Smallcaps Map View 50x35 Zoom Use 0% Tactical HUD 0 Map Filters NONE Filters NONE Steam 1 RUN: 500e0ad3-94d4-4140-9c59-dcb5ccd34874